bitfinex/quotes_BTCUSD_20251219
["timestamp","ask_amount","ask_price","bid_price","bid_amount"]
[1766115274912,0.00588,87455.0,87435.0,0.0002]
[1766115275470,0.46052,87467.0,87436.0,0.60881]
[1766115275669,0.89641351,87460.0,87436.0,0.60891909]
[1766115275916,0.89641351,87460.0,87436.0,0.03738909]
[1766115276117,0.89641351,87450.0,87436.0,0.03738909]
[1766115276316,0.00588,87449.0,87436.0,0.03738909]
[1766115276688,0.00588,87449.0,87435.0,0.0002]
[1766115276689,0.01143667,87438.0,87412.0,0.00588]
[1766115276890,0.89641351,87433.0,87412.0,0.00588]
[1766115277016,0.46052,87434.0,87412.0,0.00588]
[1766115277222,0.46052,87433.0,87406.0,0.00588]
[1766115277423,0.46052,87433.0,87398.0,0.0488119]
[1766115277424,0.00588,87437.0,87405.0,0.57153]
[1766115277652,0.46052,87436.0,87405.0,0.57153]
[1766115277859,0.47195732,87433.0,87406.0,0.00588]
[1766115278227,0.47195732,87433.0,87404.0,0.0001]
[1766115278228,0.63201837,87425.0,87404.0,0.0001]
[1766115278448,0.89641351,87420.0,87404.0,0.0001]
[1766115278820,0.46052,87412.0,87380.0,0.00588]
[1766115279023,0.01144046,87409.0,87380.0,0.00588]
[1766115279255,0.01144046,87409.0,87369.0,0.22891388]
[1766115279256,19.15386,87401.0,87370.0,0.89641351]
[1766115279398,18.65033251,87401.0,87399.0,0.22883557]
[1766115279615,18.65033251,87401.0,87400.0,0.14238]
[1766115279616,15.68811623,87401.0,87400.0,0.14238]
[1766115279871,13.86899667,87401.0,87400.0,0.14238]
[1766115280223,13.80597459,87401.0,87400.0,0.09106485]
[1766115280396,13.80597459,87401.0,87400.0,0.05204485]
[1766115280707,13.74295251,87401.0,87400.0,0.05204485]
[1766115281139,13.74295251,87401.0,87400.0,0.00624485]
[1766115281560,13.74295251,87401.0,87400.0,0.00956506]
[1766115281767,13.74295251,87401.0,87400.0,0.00258606]
[1766115281982,13.74295251,87401.0,87360.0,0.89641351]
[1766115281983,13.74295251,87401.0,87378.0,0.00588]
[1766115282193,0.63202164,87400.0,87378.0,0.00598924]
[1766115282400,0.62058,87393.0,87378.0,0.00010924]
[1766115282617,0.00588,87392.0,87378.0,0.00010924]
[1766115283028,0.89641351,87390.0,87378.0,0.00010924]
[1766115283241,0.56572,87387.0,87358.0,0.0002]
[1766115283444,0.56572,87385.0,87359.0,0.05020968]
[1766115283893,0.89641351,87380.0,87358.0,0.00030943]
[1766115284131,0.89641351,87380.0,87341.0,0.0001]
[1766115284132,0.56572,87369.0,87336.0,0.05020968]
[1766115284318,0.56572,87367.0,87336.0,0.05020968]
[1766115284488,0.56572,87365.0,87336.0,0.05020968]
[1766115284695,0.00588,87368.0,87336.0,0.05020968]
[1766115284905,0.4613,87367.0,87335.0,0.00588]
[1766115285200,1.02702,87359.0,87335.0,0.0059896]
[1766115285547,0.00588,87358.0,87335.0,0.0059896]
[1766115285686,0.56572,87369.0,87339.0,0.22899083]
[1766115285927,0.89641351,87360.0,87335.0,0.0059896]
[1766115286141,0.00592,87359.0,87335.0,0.0059896]
[1766115286344,0.4613,87358.0,87335.0,0.0059896]
[1766115286548,0.89641351,87350.0,87335.0,0.0001096]
[1766115286756,0.00592,87349.0,87335.0,0.0001096]
[1766115287333,0.57164,87349.0,87335.0,0.0001096]
[1766115287502,0.56572,87347.0,87321.0,0.00592]
[1766115287703,0.56572,87347.0,87317.0,0.05020968]
[1766115287704,0.61483961,87340.0,87317.0,0.05020968]
[1766115288025,0.61483961,87330.0,87307.0,0.0004]
[1766115288244,0.00010924,87347.0,87307.0,0.0004]
[1766115288245,0.56572,87346.0,87307.0,0.0004]
[1766115288487,0.56572,87335.0,87307.0,0.01185383]
[1766115288665,0.56572,87333.0,87307.0,0.0004]
[1766115288868,0.00010924,87347.0,87307.0,0.0004]
[1766115289076,0.56572,87340.0,87308.0,0.0173737]
[1766115289285,0.56572,87338.0,87308.0,0.00592]
[1766115289494,0.56572,87332.0,87308.0,0.00592]
[1766115289699,0.61483961,87330.0,87308.0,0.00592]
[1766115290108,0.4613,87329.0,87308.0,0.00592]
[1766115290317,0.56572,87326.0,87307.0,0.0004]
[1766115290524,0.0004,87307.0,87286.0,0.01747659]
[1766115290733,0.00632,87307.0,87286.0,0.00602]
[1766115290943,0.4613,87306.0,87286.0,0.00602]
[1766115291158,0.56572,87302.0,87286.0,0.0001]
[1766115291375,0.01145213,87320.0,87286.0,0.0001]
[1766115291376,0.0114495,87340.0,87295.0,0.0114554]
[1766115291589,0.00099999,87360.0,87319.0,0.01145226]
[1766115291590,0.4613,87358.0,87319.0,0.01145226]
[1766115291803,0.4613,87358.0,87320.0,0.05020968]
[1766115291804,0.00010922,87340.0,87320.0,0.05020968]
[1766115292027,0.57164,87339.0,87320.0,0.05020968]
[1766115292484,0.00592,87339.0,87320.0,0.05020968]
[1766115292716,0.00592,87339.0,87299.0,0.01145488]
[1766115292717,0.001099,87320.0,87299.0,0.01145488]
[1766115292862,0.001099,87320.0,87304.0,0.00592]
[1766115293060,0.00592,87321.0,87304.0,0.00592]
[1766115293473,0.61483961,87320.0,87288.0,0.22912417]
[1766115293689,0.61483961,87320.0,87288.0,0.23504417]
[1766115294036,0.61483961,87310.0,87288.0,0.00592]
[1766115294235,0.001099,87291.0,87250.0,0.03910834]
[1766115294452,0.001099,87291.0,87240.0,0.00099999]
[1766115294453,0.001099,87291.0,87257.0,0.05020968]
[1766115294583,0.61483961,87280.0,87257.0,0.05020968]
[1766115294843,0.00592,87279.0,87257.0,0.05020968]
[1766115295009,0.00592,87278.0,87257.0,0.05020968]
[1766115295240,0.56572,87275.0,87257.0,0.00036379]
[1766115295441,0.00592,87278.0,87257.0,0.00036379]
[1766115295442,0.46722,87278.0,87257.0,0.00036379]
[1766115295591,0.56572,87286.0,87260.0,0.05020968]
[1766115295592,0.00592,87286.0,87260.0,0.05020968]
[1766115295999,0.00592,87286.0,87261.0,0.01375184]
[1766115296210,0.4613,87297.0,87274.0,0.05020968]
[1766115296413,0.05794762,87348.0,87272.0,0.00592]
[1766115296414,0.00592,87299.0,87272.0,0.00592]
[1766115296828,0.00592,87299.0,87267.0,0.05020968]
[1766115296829,0.01145554,87294.0,87267.0,0.05020968]
[1766115297051,0.56572,87292.0,87271.0,0.00592]
[1766115297261,0.00592,87291.0,87271.0,0.00592]
[1766115297466,0.4613,87293.0,87272.0,0.00592]
[1766115297467,1.02702,87293.0,87272.0,0.00592]
[1766115297672,0.00592,87292.0,87272.0,0.00592]
[1766115298581,0.57164,87292.0,87272.0,0.00592]
[1766115299302,0.4613,87294.0,87262.0,0.01145974]
[1766115299477,0.4613,87294.0,87261.0,0.04363968]
[1766115299658,0.4613,87294.0,87293.0,0.00084817]
[1766115299865,0.4613,87294.0,87293.0,1.7e-07]
[1766115300467,0.56572,87302.0,87293.0,1.7e-07]
[1766115300468,0.00592,87336.0,87300.0,0.0011]
[1766115300697,0.00592,87336.0,87293.0,0.04584]
[1766115300698,0.01145108,87328.0,87301.0,0.00592]
[1766115300951,0.00592,87336.0,87297.0,0.00592]
[1766115300952,0.4613,87318.0,87297.0,0.00592]
[1766115301176,0.4613,87347.0,87312.0,0.05020968]
[1766115301386,0.56572,87339.0,87303.0,0.00453]
[1766115301596,0.4613,87347.0,87327.0,0.05020968]
[1766115301799,0.00592,87352.0,87327.0,0.05020968]
[1766115302022,0.56572,87339.0,87313.0,0.05020968]
[1766115302241,0.00010946,87339.0,87320.0,0.00592]
[1766115303166,0.59347,87337.0,87320.0,0.00592]
[1766115303924,0.00010946,87339.0,87327.0,0.05020968]
[1766115304102,0.46328,87355.0,87327.0,0.05020968]
[1766115304103,0.00592,87350.0,87327.0,0.05020968]
[1766115304302,0.00592,87350.0,87327.0,0.05031914]
[1766115304532,0.62075961,87350.0,87327.0,0.05031914]
[1766115304777,0.24038533,87360.0,87327.0,0.05031914]
[1766115304778,0.46328,87367.0,87341.0,0.05020968]
[1766115305010,0.46328,87380.0,87360.0,0.05020968]
[1766115305185,0.01144177,87399.0,87360.0,0.05020968]
[1766115305186,0.46328,87394.0,87374.0,0.05020968]
[1766115305384,0.62628125,87400.0,87374.0,0.05020968]
[1766115305385,0.00592,87393.0,87374.0,0.05020968]
[1766115305555,0.61483961,87390.0,87374.0,0.05020968]
[1766115305737,0.00592,87393.0,87374.0,0.05020968]
[1766115305738,0.01144308,87389.0,87374.0,0.05020968]
[1766115305941,0.61483961,87390.0,87374.0,0.05020968]
[1766115306207,0.61483961,87390.0,87373.0,0.00592]
[1766115306208,0.61483961,87384.0,87366.0,0.00592]
[1766115306465,0.00592,87384.0,87365.0,0.00592]
[1766115306659,0.46328,87385.0,87366.0,0.00592]
[1766115306837,0.62086915,87390.0,87366.0,0.00592]
[1766115306838,0.00602954,87390.0,87366.0,0.00592]
[1766115307157,0.00602954,87390.0,87362.0,0.05020968]
[1766115307158,0.61483961,87380.0,87362.0,0.05020968]
[1766115307321,0.61483961,87380.0,87366.0,0.00592]
[1766115307643,0.61483961,87380.0,87364.0,0.00592]
[1766115308212,0.61483961,87380.0,87342.0,0.01373909]
[1766115308409,0.59347,87368.0,87355.0,0.05020968]
[1766115308628,0.46328,87368.0,87355.0,0.05020968]
[1766115308828,0.46328,87368.0,87341.0,0.05020968]
[1766115308829,0.01144596,87367.0,87341.0,0.05020968]
[1766115309029,0.59347,87369.0,87341.0,0.05020968]
[1766115309030,0.59347,87358.0,87341.0,0.05020968]
[1766115309305,0.59347,87358.0,87342.0,0.00592]
[1766115309450,1.05675,87357.0,87342.0,0.00592]
[1766115309649,0.46328,87355.0,87341.0,0.05020968]
[1766115309853,0.46328,87355.0,87337.0,0.00592]
[1766115310096,0.46328,87355.0,87330.0,0.00592]
[1766115310097,0.46328,87347.0,87330.0,0.00592]
[1766115310257,0.61483961,87340.0,87330.0,0.00010946]
[1766115310463,0.59347,87338.0,87322.0,0.00592]
[1766115310781,0.46328,87339.0,87322.0,0.00592]
[1766115310782,0.59347,87350.0,87338.0,0.00098954]
[1766115310968,0.46328,87351.0,87332.0,0.00592]
[1766115311163,0.46328,87351.0,87332.0,0.00602946]
[1766115311414,0.61483961,87342.0,87318.0,0.04584]
[1766115311613,0.00592,87341.0,87327.0,0.05020968]
[1766115311820,0.00010946,87342.0,87328.0,0.00592]
[1766115312028,0.00010946,87342.0,87327.0,0.05020968]
[1766115312441,0.61483961,87340.0,87327.0,0.05020968]
[1766115312620,0.61483961,87340.0,87313.0,0.05020968]
[1766115312621,0.00113255,87339.0,87313.0,0.05020968]
[1766115312833,0.61483961,87323.0,87296.0,0.02936459]
[1766115313014,0.01145147,87325.0,87290.0,0.00592]
[1766115313015,0.62739165,87313.0,87290.0,0.00592]
[1766115313345,0.61483961,87300.0,87286.0,0.02936459]
[1766115313565,0.58528,87298.0,87280.0,0.05020968]
[1766115313774,0.45725,87299.0,87285.0,1.41e-06]
[1766115313775,0.46317,87297.0,87285.0,1.41e-06]
[1766115313975,0.000251,87285.0,87258.0,0.02936459]
[1766115314181,0.61483961,87280.0,87262.0,0.00592]
[1766115314393,0.00592,87288.0,87275.0,0.05020968]
[1766115314592,0.00592,87305.0,87276.0,0.01966948]
[1766115314739,0.00592,87305.0,87276.0,0.00592]
[1766115315283,1.20011961,87290.0,87275.0,0.05020968]
[1766115315586,0.58528,87289.0,87271.0,0.00592]
[1766115315729,1.04253,87289.0,87271.0,0.00592]
[1766115316717,0.58528,87288.0,87271.0,0.00592]
[1766115316870,0.00592,87296.0,87271.0,0.00592]
[1766115317075,0.00592,87296.0,87275.0,0.05020968]
[1766115317281,0.00592,87296.0,87275.0,0.06166771]
[1766115317484,0.00592,87296.0,87275.0,0.05020968]
[1766115318052,0.00592,87296.0,87276.0,0.00592]
[1766115318265,0.00592,87296.0,87277.0,0.00592]
[1766115318468,0.001099,87277.0,87265.0,0.04584]
[1766115318679,0.458349,87277.0,87261.0,0.00036379]
[1766115318914,0.61483961,87271.0,87261.0,3.79e-06]
[1766115319084,0.45725,87277.0,87261.0,3.79e-06]
[1766115319282,0.00592,87282.0,87261.0,3.79e-06]
[1766115319490,0.00592,87282.0,87277.0,0.00025125]
[1766115319726,0.00592,87282.0,87277.0,1.25e-06]
[1766115319923,0.05176,87290.0,87277.0,1.25e-06]
[1766115320519,0.00113255,87289.0,87277.0,1.25e-06]
[1766115321106,0.58528,87286.0,87277.0,1.25e-06]
[1766115321384,0.00592,87288.0,87277.0,1.25e-06]
[1766115321385,1.04253,87285.0,87277.0,1.25e-06]
[1766115321934,1.04253,87285.0,87250.0,0.01146131]
[1766115321935,0.01145842,87272.0,87246.0,0.09608968]
[1766115322117,0.45725,87266.0,87239.0,0.02936459]
[1766115322327,0.62075961,87271.0,87239.0,0.00592]
[1766115322328,0.45725,87262.0,87239.0,0.00592]
[1766115322521,0.00592,87262.0,87239.0,0.00592]
[1766115322728,0.00592,87262.0,87250.0,0.01146131]
[1766115322930,0.00592,87288.0,87253.0,0.05734092]
[1766115323113,0.00592,87288.0,87252.0,0.00592]
[1766115323114,0.58528,87277.0,87256.0,0.00592]
[1766115323471,0.45725,87266.0,87251.0,0.05020968]
[1766115323701,0.00113255,87264.0,87242.0,0.0004]
[1766115323936,0.00113255,87264.0,87246.0,0.00592]
[1766115324113,0.00113255,87264.0,87242.0,0.0004]
[1766115324114,0.22919348,87263.0,87242.0,0.0004]
[1766115324314,0.22919348,87263.0,87225.0,0.09376426]
[1766115324315,0.45725,87251.0,87225.0,0.04588]
[1766115324539,1.20011961,87250.0,87225.0,0.00010961]
[1766115324738,0.58528,87249.0,87226.0,0.00592]
[1766115324859,0.45725,87250.0,87225.0,0.00010961]
[1766115325058,0.00592,87253.0,87225.0,0.00010961]
[1766115325304,0.00592,87253.0,87226.0,0.01146447]
[1766115325305,0.58528,87248.0,87226.0,0.01146447]
[1766115325507,0.61483961,87270.0,87239.0,0.01146276]
[1766115325840,0.62075961,87270.0,87231.0,0.01146381]
[1766115326044,0.61483961,87260.0,87225.0,0.09080961]
[1766115326246,0.01146052,87256.0,87225.0,0.00010961]
[1766115326445,0.58528,87252.0,87225.0,0.00010961]
[1766115326779,0.58528,87246.0,87225.0,0.00010961]
[1766115326985,0.58528,87246.0,87209.0,0.22933191]
[1766115326986,0.61483961,87240.0,87200.0,0.02936459]
[1766115327189,0.61483961,87240.0,87206.0,0.04588]
[1766115327190,0.000109,87225.0,87206.0,0.04588]
[1766115327404,0.00592,87224.0,87200.0,0.00036564]
[1766115327599,0.0907,87219.0,87200.0,0.00036564]
[1766115327775,0.45725,87221.0,87203.0,0.01146749]
[1766115327976,0.00592,87224.0,87200.0,0.00036564]
[1766115327977,0.58528,87215.0,87200.0,0.00036564]
[1766115328144,0.61483961,87220.0,87200.0,0.00036564]
[1766115328145,0.45725,87217.0,87200.0,0.00036564]
[1766115328344,0.61483961,87210.0,87185.0,0.0002]
[1766115328547,0.61483961,87200.0,87185.0,0.0002]
[1766115328767,0.61483961,87200.0,87168.0,0.0001]
[1766115328768,0.45725,87195.0,87168.0,0.0001]
[1766115329010,0.00113255,87190.0,87180.0,0.05020968]
[1766115329215,0.00113255,87190.0,87179.0,0.00592]
[1766115329416,0.00113255,87190.0,87168.0,0.01749209]
[1766115329626,0.00113255,87190.0,87168.0,0.00602]
[1766115329833,0.00113255,87190.0,87168.0,0.24693364]
[1766115330080,1.04253,87189.0,87168.0,0.0001]
[1766115330251,1.04253,87189.0,87168.0,0.22954043]
[1766115330479,1.04408645,87189.0,87168.0,0.0001]
[1766115330687,0.00113255,87190.0,87168.0,0.0001]
[1766115330897,0.58528,87189.0,87168.0,0.0001]
[1766115331111,0.58528,87189.0,87173.0,0.01147144]
[1766115331317,0.61597216,87190.0,87168.0,0.0001]
[1766115331318,0.61483961,87183.0,87168.0,0.0001]
[1766115331524,0.61483961,87183.0,87159.0,0.04588]
[1766115331525,0.001099,87173.0,87159.0,0.04588]
[1766115331740,0.29104722,87196.0,87123.0,0.0011]
[1766115331741,0.58528,87169.0,87123.0,0.0011]
[1766115331939,0.58528,87159.0,87146.0,1.66e-06]
[1766115332362,0.00592,87170.0,87146.0,1.66e-06]
[1766115332363,0.62075961,87170.0,87146.0,1.66e-06]
[1766115332557,0.00113255,87169.0,87146.0,0.00011125]
[1766115332874,0.00113255,87169.0,87168.0,0.00342689]
[1766115332875,2.55e-06,87169.0,87168.0,0.00342689]
[1766115333231,2.55e-06,87169.0,87150.0,0.01147446]
[1766115333232,0.001099,87168.0,87150.0,0.01147446]
[1766115333432,0.001099,87168.0,87147.0,0.22949647]
[1766115333433,0.001099,87168.0,87160.0,0.01147315]
[1766115333632,0.001099,87168.0,87145.0,0.01147512]
[1766115333847,1.04253,87166.0,87148.0,0.22949213]
[1766115334051,2.55e-06,87169.0,87159.0,0.01147328]
[1766115334257,2.55e-06,87169.0,87156.0,0.01147367]
[1766115334258,2.55e-06,87169.0,87164.0,0.22945252]
[1766115334422,2.55e-06,87169.0,87167.0,0.22944243]
[1766115335207,2.55e-06,87169.0,87168.0,0.4963185]
[1766115335417,2.55e-06,87169.0,87168.0,0.48255199]
[1766115335864,2.55e-06,87169.0,87168.0,0.39185199]
[1766115336094,2.55e-06,87169.0,87168.0,0.39324199]
[1766115336288,2.55e-06,87169.0,87168.0,0.050741]
[1766115336757,2.55e-06,87169.0,87153.0,0.29878968]
[1766115336758,2.55e-06,87169.0,87159.0,0.01147328]
[1766115336907,2.55e-06,87169.0,87156.0,0.01147367]
[1766115337120,2.55e-06,87169.0,87154.0,0.24095174]
[1766115337318,2.55e-06,87169.0,87130.0,0.15788]
[1766115337319,0.61483961,87164.0,87130.0,0.15788]
[1766115337512,0.61483961,87164.0,87138.0,0.05184]
[1766115337513,0.58528,87154.0,87138.0,0.05184]
[1766115337719,0.05020968,87146.0,87119.0,0.0004]
[1766115337876,0.58528,87128.0,87097.0,0.22962846]
[1766115338078,13.25032153,87101.0,87097.0,0.00036682]
[1766115338275,12.42198867,87101.0,87099.0,0.22962218]
[1766115338477,12.35879861,87101.0,87097.0,0.00036682]
[1766115338734,11.92930725,87101.0,87100.0,0.22962112]
[1766115338946,11.86611719,87101.0,87100.0,0.22962112]
[1766115339144,11.86611719,87101.0,87100.0,0.28146112]
[1766115339408,11.86611719,87101.0,87098.0,0.2411077]
[1766115339586,11.86611719,87101.0,87097.0,0.00036682]
[1766115339778,11.86611719,87101.0,87098.0,0.01148131]
[1766115340218,11.86611719,87101.0,87097.0,0.00036682]
[1766115340750,11.86611719,87101.0,87097.0,8.2e-07]
[1766115341403,11.86611719,87101.0,87084.0,0.10140025]
[1766115341404,0.45725,87099.0,87076.0,0.01148422]
[1766115341580,0.0003642,87099.0,87071.0,0.00592]
[1766115341783,4.2e-06,87099.0,87086.0,0.22965713]
[1766115341982,4.2e-06,87099.0,87091.0,0.01148224]
[1766115342185,11.33339632,87101.0,87100.0,0.22962112]
[1766115342384,11.33263032,87101.0,87100.0,0.23565059]
[1766115342589,11.33263032,87101.0,87100.0,0.00602947]
[1766115342797,0.00022353,87100.0,87091.0,0.06200179]
[1766115342999,11.33263032,87101.0,87089.0,0.0114825]
[1766115343000,11.33090137,87101.0,87089.0,0.0114825]
[1766115343173,11.33090137,87101.0,87089.0,0.0003642]
[1766115343378,11.33090137,87101.0,87089.0,2e-07]
[1766115343721,11.33056837,87101.0,87090.0,0.61483961]
[1766115343891,11.33056837,87101.0,87100.0,1.85e-06]
[1766115344708,11.32842837,87101.0,87100.0,1.85e-06]
[1766115344926,10.73340612,87101.0,87100.0,1.85e-06]
[1766115345143,9.71196717,87101.0,87100.0,0.32032297]
[1766115345355,9.71196717,87101.0,87100.0,0.22962297]
[1766115345356,8.48928646,87101.0,87100.0,0.22962297]
[1766115345565,8.28409371,87101.0,87100.0,1.85e-06]
[1766115345967,8.28409371,87101.0,87073.0,0.01148461]
[1766115345968,0.0907,87100.0,87073.0,0.01148461]
[1766115346174,0.0907,87100.0,87080.0,0.00592]
[1766115346584,0.0907,87100.0,87080.0,0.62075961]
[1766115346784,0.0907,87100.0,87080.0,0.00592]
[1766115346993,0.0907,87100.0,87080.0,0.61483961]
[1766115347215,8.28409371,87101.0,87089.0,0.0059202]
[1766115347623,8.28409371,87101.0,87090.0,0.05051955]
[1766115347869,8.28409371,87101.0,87091.0,0.00592]
[1766115348064,0.000735,87091.0,87089.0,2e-07]
[1766115348482,0.49148,87098.0,87089.0,2e-07]
[1766115348686,0.60443,87095.0,87089.0,2e-07]
[1766115348896,8.28409371,87101.0,87089.0,2e-07]
[1766115348897,0.49148,87094.0,87089.0,2e-07]
[1766115349134,0.60443,87089.0,87071.0,0.00592]
[1766115349367,0.60443,87085.0,87070.0,0.00592]
[1766115349583,0.60443,87083.0,87068.0,0.00592]
[1766115349795,0.60443,87083.0,87066.0,0.01148553]
[1766115350018,0.00628427,87089.0,87067.0,0.00592]
[1766115350233,0.49148,87085.0,87059.0,0.0004]
[1766115350449,0.00592,87088.0,87060.0,0.00592]
[1766115350450,0.60443,87084.0,87060.0,0.00592]
[1766115350660,0.0907,87086.0,87060.0,0.00592]
[1766115351048,0.0907,87077.0,87041.0,0.0004]
[1766115351272,0.01148527,87068.0,87041.0,0.0004]
[1766115351489,0.60443,87050.0,87019.0,0.05]
[1766115351730,0.0907,87051.0,87019.0,0.05]
[1766115351731,0.00592,87049.0,87019.0,0.05]
[1766115352167,0.00592,87049.0,87020.0,0.00592]
[1766115352168,0.58218,87047.0,87020.0,0.00592]
[1766115352377,0.0907,87043.0,87020.0,0.00592]
[1766115352596,0.00592,87042.0,87020.0,0.00592]
[1766115352817,0.49148,87067.0,87027.0,0.05051955]
[1766115353068,0.0907,87078.0,87050.0,0.90633767]
[1766115353281,0.0907,87078.0,87046.0,0.00607]
[1766115353282,0.00592,87084.0,87063.0,0.01148593]
[1766115353487,8.30211044,87101.0,87080.0,0.01148369]
[1766115353737,8.28409371,87101.0,87088.0,0.01148263]
[1766115353978,8.28409371,87101.0,87084.0,0.05051955]
[1766115354183,8.28409371,87101.0,87092.0,0.01148211]
[1766115354184,8.10123471,87101.0,87092.0,0.01148211]
[1766115354404,8.10123471,87101.0,87085.0,0.17583]
[1766115354405,8.10159898,87101.0,87088.0,0.01148263]
[1766115354623,8.10159898,87101.0,87084.0,0.06200271]
[1766115354624,8.10159898,87101.0,87084.0,0.05051955]
[1766115354832,8.10159898,87101.0,87089.0,0.00592]
[1766115355030,8.10159898,87101.0,87084.0,0.05051955]
[1766115355243,0.001099,87089.0,87087.0,0.00592]
[1766115355476,8.10159898,87101.0,87081.0,0.00592]
[1766115356007,8.10159898,87101.0,87084.0,0.05051955]
[1766115356219,0.00592,87100.0,87084.0,0.05051955]
[1766115356417,0.00592,87100.0,87079.0,0.00592]
[1766115356635,8.10159898,87101.0,87090.0,0.01148237]
[1766115356858,7.65076918,87101.0,87098.0,0.24110604]
[1766115357062,7.65076918,87101.0,87100.0,0.05051955]
[1766115357265,7.65076918,87101.0,87082.0,0.22966746]
[1766115357468,0.001099,87100.0,87083.0,0.10218329]
[1766115357617,7.65076918,87101.0,87085.0,0.06200258]
[1766115357820,7.65076918,87101.0,87073.0,0.01148461]
[1766115358034,0.00592,87100.0,87074.0,0.00592]
[1766115358238,1.09591,87099.0,87070.0,0.14121955]
[1766115358441,0.00592,87100.0,87070.0,0.05051955]
[1766115358755,0.0907,87096.0,87070.0,0.05051955]
[1766115358955,0.13666,87096.0,87069.0,0.00592]
[1766115359158,0.001099,87070.0,87069.0,0.00592]
[1766115359483,0.001099,87070.0,87062.0,0.00592]
[1766115359691,7.65040491,87101.0,87080.0,0.01148369]
[1766115359823,7.65040491,87101.0,87078.0,0.00592]
[1766115360027,7.65040491,87101.0,87068.0,0.28714551]
[1766115360028,0.49148,87097.0,87067.0,0.00592]
[1766115360225,0.0907,87096.0,87067.0,0.00592]
[1766115360508,0.0907,87096.0,87063.0,0.01148593]
[1766115360509,0.60443,87089.0,87051.0,0.0907]
[1766115360666,0.60443,87089.0,87037.0,0.04107432]
[1766115360667,0.60443,87078.0,87037.0,0.04107432]
[1766115360864,0.49148,87062.0,87026.0,0.04596]
[1766115361069,0.69513,87056.0,87020.0,0.22982992]
[1766115361269,0.05188,87055.0,87021.0,0.01378977]
[1766115361526,0.00592,87060.0,87037.0,0.01148936]
[1766115361699,0.00592,87059.0,87045.0,0.01148831]
[1766115361918,0.60443,87079.0,87051.0,0.22975001]
[1766115362121,0.05188,87078.0,87059.0,0.001099]
[1766115362487,0.00592,87077.0,87064.0,0.0114858]
[1766115362672,0.00592,87077.0,87048.0,0.01148791]
[1766115362673,0.4843,87076.0,87048.0,0.01148791]
[1766115362959,1.05275,87070.0,87047.0,0.00592]
[1766115363241,0.4843,87067.0,87047.0,0.00592]
[1766115363452,0.22967688,87079.0,87031.0,0.0620097]
[1766115363453,0.05188,87066.0,87031.0,0.05051955]
[1766115363627,0.49022,87065.0,87036.0,0.0907]
[1766115363830,0.00592,87070.0,87053.0,0.01148725]
[1766115364036,0.00592,87070.0,87037.0,0.01378723]
[1766115364037,0.56845,87077.0,87054.0,0.00592]
[1766115364273,0.00592,87076.0,87054.0,0.00592]
[1766115364462,0.00592,87079.0,87062.0,0.01148606]
[1766115364659,0.4843,87086.0,87076.0,0.001099]
[1766115364858,0.00592,87083.0,87076.0,0.001099]
[1766115365067,0.4843,87092.0,87060.0,0.01148633]
[1766115365284,0.56845,87089.0,87055.0,0.00592]
[1766115365500,0.56845,87083.0,87055.0,0.00592]
[1766115365715,0.00592,87091.0,87043.0,4.96e-06]
[1766115365716,0.4843,87068.0,87043.0,4.96e-06]
[1766115365885,0.22975113,87051.0,87019.0,0.05]
[1766115366119,0.4843,87059.0,87019.0,0.05]
[1766115366120,0.56845,87046.0,87019.0,0.05]
[1766115366329,0.4843,87059.0,87036.0,0.01148949]
[1766115366497,0.4843,87059.0,87049.0,0.01148778]
[1766115366920,0.001099,87049.0,87028.0,0.01149055]
[1766115367061,0.56845,87058.0,87034.0,0.01148976]
[1766115367248,0.56845,87058.0,87031.0,0.01149015]
[1766115367441,0.56845,87058.0,87030.0,0.01149029]
[1766115367442,0.56845,87058.0,87032.0,0.0907]
[1766115367647,0.0907,87076.0,87050.0,0.01148765]
[1766115367648,0.00592,87074.0,87050.0,0.01148765]
[1766115367855,0.56845,87071.0,87045.0,0.01148831]
[1766115368154,0.4843,87068.0,87039.0,0.00592]
[1766115368343,0.00592,87074.0,87035.0,0.08967381]
[1766115368344,0.56845,87061.0,87035.0,0.05051955]
[1766115368611,0.56845,87059.0,87035.0,0.05051955]
[1766115368836,0.56845,87057.0,87034.0,0.0907]
[1766115369087,0.56845,87057.0,87037.0,0.01148936]
[1766115369293,0.00592,87063.0,87056.0,0.00138713]
[1766115369481,0.00592,87063.0,87038.0,0.01148923]
[1766115369482,0.00592,87063.0,87040.0,0.01148897]
[1766115369682,0.00592,87063.0,87035.0,0.05051955]
[1766115369928,0.575,87061.0,87033.0,0.00592]
[1766115370136,0.575,87061.0,87023.0,0.05064547]
[1766115370137,0.4843,87055.0,87023.0,0.05064547]
[1766115370342,0.0907,87061.0,87054.0,0.00025251]
[1766115370544,0.00592,87063.0,87054.0,5.1e-07]
[1766115370808,0.65915,87083.0,87063.0,0.000252]
[1766115371014,0.56845,87083.0,87063.0,0.000252]
[1766115371431,0.56845,87083.0,87056.0,0.14121955]
[1766115371432,0.4843,87078.0,87056.0,0.05051955]
[1766115371640,0.4843,87072.0,87054.0,5.1e-07]
[1766115371810,0.000847,87056.0,87054.0,5.1e-07]
[1766115372051,0.56845,87069.0,87054.0,5.1e-07]
[1766115372052,0.56845,87059.0,87054.0,5.1e-07]
[1766115372270,0.046,87075.0,87054.0,5.1e-07]
[1766115372271,0.00592,87056.0,87054.0,5.1e-07]
[1766115372417,0.046,87075.0,87054.0,5.1e-07]
[1766115372418,0.00592,87068.0,87054.0,5.1e-07]
[1766115373170,0.00592,87068.0,87054.0,0.00011037]
[1766115373701,0.005668,87068.0,87054.0,0.00011037]
[1766115374489,0.005668,87068.0,87054.0,3.7e-07]
[1766115374665,0.61411,87080.0,87055.0,0.2297379]
[1766115374873,0.0907,87091.0,87054.0,3.7e-07]
[1766115374874,0.62003,87079.0,87054.0,3.7e-07]
[1766115375864,0.00592,87079.0,87054.0,3.7e-07]
[1766115376038,0.0907,87074.0,87054.0,3.7e-07]
[1766115376223,0.01148514,87069.0,87054.0,3.7e-07]
[1766115376424,0.05051955,87059.0,87054.0,3.7e-07]
[1766115376621,0.61411,87055.0,87054.0,3.7e-07]
[1766115376824,0.61411,87055.0,87021.0,0.03915426]
[1766115377030,0.61421922,87055.0,87019.0,0.08915426]
[1766115377228,0.61411,87051.0,87024.0,0.01149108]
[1766115377432,0.00010922,87055.0,87028.0,0.241299]
[1766115377658,0.00010922,87055.0,87027.0,0.03915426]
[1766115377903,0.00010922,87055.0,87032.0,0.01149002]
[1766115378101,0.00010922,87055.0,87032.0,0.12985426]